fUSD/lending_fUSD_20240616
["ID","MTS","AMOUNT","RATE_DAILY","PERIOD"]
[329637039,1718519526388,-500.0,0.00024657,3]
[329637040,1718519526404,-500.0,0.00024657,3]
[329637041,1718519526415,-500.0,0.00024657,3]
[329637042,1718519526438,-558.88,0.00024657,3]
[329637043,1718519526449,-500.0,0.00024657,3]
[329637044,1718519526461,-695.39,0.00024657,3]
[329637045,1718519526478,-500.0,0.00024657,3]
[329637046,1718519526490,-500.0,0.00024657,3]
[329637047,1718519526507,-500.0,0.00024657,3]
[329637048,1718519526521,-518.8,0.00024657,3]
[329637049,1718519526535,-500.0,0.00024657,3]
[329637050,1718519526546,-500.0,0.00024657,3]
[329637051,1718519526558,-450.73118854,0.00024657,3]
[329637052,1718519526570,-579.83,0.00024657,3]
[329637053,1718519526583,-500.0,0.00024657,3]
[329637054,1718519526596,-500.0,0.00024657,3]
[329637055,1718519526611,-500.0,0.00024657,3]
[329637056,1718519526630,-500.0,0.00024657,3]
[329637057,1718519526657,-665.03,0.00024657,3]
[329637058,1718519526669,-565.67937529,0.00024657,3]
[329637059,1718519526689,-500.0,0.00024657,3]
[329637060,1718519526710,-500.0,0.00024657,3]
[329637061,1718519526722,-500.0,0.00024657,3]
[329637062,1718519526743,-500.0,0.00024657,3]
[329637063,1718519526756,-538.51,0.00024657,3]
[329637064,1718519526770,-577.03,0.00024657,3]
[329637065,1718519526781,-500.0,0.00024657,3]
[329637066,1718519526793,-500.0,0.00024657,3]
[329637067,1718519526805,-618.93,0.00024657,3]
[329637068,1718519526824,-500.0,0.00024657,3]
[329637069,1718519526855,-689.97,0.00024657,3]
[329637070,1718519526878,-500.0,0.00024657,3]
[329637071,1718519526893,-500.0,0.00024657,3]
[329637072,1718519526905,-500.0,0.00024657,3]
[329637073,1718519526924,-500.0,0.00024657,3]
[329637074,1718519526937,-500.0,0.00024657,3]
[329637075,1718519526951,-732.2,0.00024657,3]
[329637076,1718519526963,-326.07672765,0.00024657,3]
[329637077,1718519526980,-500.0,0.00024657,3]
[329637078,1718519527007,-528.47,0.00024657,3]
[329637079,1718519527027,-307.66811064,0.00024657,3]
[329637080,1718519527044,-500.0,0.00024657,3]
[329637081,1718519527063,-523.56,0.00024657,3]
[329637082,1718519527082,-500.0,0.00024657,3]
[329637083,1718519527098,-500.0,0.00024657,3]
[329637084,1718519527112,-784.49,0.00024657,3]
[329637085,1718519527128,-500.0,0.00024657,3]
[329637086,1718519527156,-500.0,0.00024657,3]
[329637087,1718519527182,-500.0,0.00024657,3]
[329637088,1718519527201,-500.0,0.00024657,3]
[329637089,1718519527222,-500.0,0.00024657,3]
[329637090,1718519527239,-1409.82,0.00024657,3]
[329637091,1718519527252,-628.68,0.00024657,3]
[329637092,1718519527269,-208.85,0.00024657,3]
[329637093,1718519527287,-500.0,0.00024657,3]
[329637094,1718519527302,-500.0,0.00024657,3]
[329637095,1718519527316,-500.0,0.00024657,3]
[329637096,1718519527330,-500.0,0.00024657,3]
[329637097,1718519527347,-644.15,0.00024657,3]
[329637098,1718519527365,-500.0,0.00024657,3]
[329637099,1718519527378,-500.0,0.00024657,3]
[329637100,1718519527390,-1318.25,0.00024657,3]
[329637101,1718519527406,-500.0,0.00024657,3]
[329637102,1718519527418,-500.0,0.00024657,3]
[329637103,1718519527433,-500.0,0.00024657,3]
[329637104,1718519527445,-629.30985432,0.00024657,3]
[329637105,1718519527461,-500.0,0.00024657,3]
[329637106,1718519527481,-827.33,0.00024657,3]
[329637107,1718519527494,-526.71,0.00024657,3]
[329637108,1718519527512,-500.0,0.00024657,3]
[329637109,1718519527525,-500.0,0.00024657,3]
[329637110,1718519527563,-500.0,0.00024657,3]
[329637111,1718519527579,-500.0,0.00024657,3]
[329637112,1718519527594,-500.0,0.00024657,3]
[329637113,1718519527626,-500.0,0.00024657,3]
[329637114,1718519527638,-500.0,0.00024657,3]
[329637115,1718519527650,-500.0,0.00024657,3]
[329637116,1718519527661,-666.89,0.00024657,3]
[329637117,1718519527686,-528.0,0.00024657,3]
[329637118,1718519527731,-500.0,0.00024657,3]
[329637119,1718519527746,-500.0,0.00024657,3]
[329637120,1718519527758,-572.8,0.00024657,3]
[329637121,1718519527792,-6771.39,0.00024657,3]
[329637122,1718519527807,-2751.09,0.00024657,3]
[329637123,1718519527823,-500.0,0.00024657,3]
[329637124,1718519527836,-556.12,0.00024657,3]
[329637125,1718519527858,-500.0,0.00024657,3]
[329637126,1718519527875,-500.318703,0.00024657,3]
[329637127,1718519527888,-500.0,0.00024657,3]
[329637128,1718519527900,-500.318703,0.00024657,3]
[329637129,1718519527914,-4111.44,0.00024657,3]
[329637130,1718519527931,-500.0,0.00024657,3]
[329637131,1718519527965,-517.38,0.00024657,3]
[329637132,1718519527984,-329.31073707,0.00024657,3]
[329637133,1718519527995,-1089.23,0.00024657,3]
[329637134,1718519528022,-500.0,0.00024657,3]
[329637135,1718519528044,-752.44,0.00024657,3]
[329637136,1718519528058,-500.0,0.00024657,3]
[329637137,1718519528081,-598.68,0.00024657,3]
[329637138,1718519528095,-16567.34,0.00024657,3]
[329637139,1718519528109,-500.0,0.00024657,3]
[329637140,1718519528125,-5825.82,0.00024657,3]
[329637141,1718519528141,-896.52,0.00024657,3]
[329637142,1718519528156,-500.0,0.00024657,3]
[329637143,1718519528168,-923.48,0.00024657,3]
[329637144,1718519528179,-565.58,0.00024657,3]
[329637145,1718519528197,-16140.01,0.00024657,3]
[329637146,1718519528214,-500.0,0.00024657,3]
[329637147,1718519528243,-867.54,0.00024657,3]
[329637148,1718519528253,-500.0,0.00024657,3]
[329637149,1718519528274,-720.86,0.00024657,3]
[329637150,1718519528289,-500.0,0.00024657,3]
[329637151,1718519528300,-1400.95,0.00024657,3]
[329637152,1718519528313,-883.04,0.00024657,3]
[329637153,1718519528327,-788.31,0.00024657,3]
[329637154,1718519528342,-614.72,0.00024657,3]
[329637155,1718519528354,-1333.44,0.00024657,3]
[329637156,1718519528366,-636.64,0.00024657,3]
[329637157,1718519528380,-1108.65,0.00024657,3]
[329637158,1718519528394,-1571.99,0.00024657,3]
[329637159,1718519528428,-1584.23,0.00024657,3]
[329637160,1718519528440,-4835.69,0.00024657,3]
[329637161,1718519528457,-500.0,0.00024657,3]
[329637162,1718519528474,-675.02,0.00024657,3]
[329637163,1718519528496,-1506.09,0.00024657,3]
[329637164,1718519528509,-547.67,0.00024657,3]
[329637165,1718519528521,-500.0,0.00024657,3]
[329637166,1718519528533,-500.0,0.00024657,3]
[329637167,1718519528547,-2665.25,0.00024657,3]
[329637168,1718519528561,-245.204462,0.00024657,3]
[329637169,1718519528573,-500.58,0.00024657,3]
[329637170,1718519528586,-768.07,0.00024657,3]
[329637171,1718519528597,-2906.49,0.00024657,3]
[329637172,1718519528609,-551.95,0.00024657,3]
[329637173,1718519528623,-1245.63,0.00024657,3]
[329637174,1718519528635,-679.0,0.00024657,3]
[329637175,1718519528650,-954.41,0.00024657,3]
[329637176,1718519528666,-500.0,0.00024657,3]
[329637177,1718519528681,-500.0,0.00024657,3]
[329637178,1718519528696,-500.0,0.00024657,3]
[329637179,1718519528710,-998.69,0.00024657,3]
[329637180,1718519528732,-500.0,0.00024657,3]
[329637181,1718519528746,-526.53,0.00024657,3]
[329637182,1718519528757,-500.0,0.00024657,3]
[329637183,1718519528773,-500.0,0.00024657,3]
[329637184,1718519528788,-574.1,0.00024657,3]
[329637185,1718519528809,-500.0,0.00024657,3]
[329637186,1718519528836,-1602.8,0.00024657,3]
[329637187,1718519528860,-500.0,0.00024657,3]
[329637188,1718519528872,-1254.36,0.00024657,3]
[329637189,1718519528901,-1766.79,0.00024657,3]
[329637190,1718519528933,-622.71,0.00024657,3]
[329637191,1718519528967,-183.42800828,0.00024657,3]
[329637192,1718519529000,-1978.99,0.00024657,3]
[329637193,1718519529029,-1271.11,0.00024657,3]
[329637194,1718519529043,-897.11,0.00024657,3]
[329637195,1718519529078,-673.16,0.00024657,3]
[329637196,1718519529094,-1458.59,0.00024657,3]
[329637197,1718519529124,-500.0,0.00024657,3]
[329637198,1718519529142,-500.0,0.00024657,3]
[329637199,1718519529162,-500.0,0.00024657,3]
[329637200,1718519529185,-503.26,0.00024657,3]
[329637201,1718519529207,-1882.15,0.00024657,3]
[329637202,1718519529236,-900.94,0.00024657,3]
[329637203,1718519529253,-6355.77,0.00024657,3]
[329637204,1718519529284,-797.28,0.00024657,3]
[329637205,1718519529296,-500.0,0.00024657,3]
[329637206,1718519529314,-500.0,0.00024657,3]
[329637207,1718519529330,-500.0,0.00024657,3]
[329637208,1718519529342,-774.66,0.00024657,3]
[329637209,1718519529360,-749.71,0.00024657,3]
[329637210,1718519529372,-564.43,0.00024657,3]
[329637211,1718519529397,-500.0,0.00024657,3]
[329637212,1718519529413,-1539.73,0.00024657,3]
[329637213,1718519529430,-500.0,0.00024657,3]
[329637214,1718519529444,-3132.14,0.00024657,3]
[329637215,1718519529461,-500.0,0.00024657,3]
[329637216,1718519529481,-500.0,0.00024657,3]
[329637217,1718519529496,-500.0,0.00024657,3]
[329637218,1718519529517,-1719.13,0.00024657,3]
[329637219,1718519529536,-500.0,0.00024657,3]
[329637220,1718519529558,-500.0,0.00024657,3]
[329637221,1718519529585,-500.0,0.00024657,3]
[329637222,1718519529597,-877.15,0.00024657,3]
[329637223,1718519529611,-638.19,0.00024657,3]
[329637224,1718519529639,-500.0,0.00024657,3]
[329637225,1718519529655,-507.88,0.00024657,3]
[329637226,1718519529675,-1256.01,0.00024657,3]
[329637227,1718519529697,-1319.04,0.00024657,3]
[329637228,1718519529711,-831.44,0.00024657,3]
[329637229,1718519529736,-1880.82,0.00024657,3]
[329637230,1718519529777,-889.01,0.00024657,3]
[329637231,1718519529806,-500.0,0.00024657,3]
[329637232,1718519529828,-839.73,0.00024657,3]
[329637233,1718519529853,-1019.43,0.00024657,3]
[329637234,1718519529872,-876.34,0.00024657,3]
[329637235,1718519529887,-1263.54,0.00024657,3]
[329637236,1718519529902,-1051.98,0.00024657,3]
[329637237,1718519529944,-868.27,0.00024657,3]
[329637238,1718519529974,-500.0,0.00024657,3]
[329637239,1718519530001,-500.0,0.00024657,3]
[329637240,1718519530021,-1623.39,0.00024657,3]
[329637241,1718519530033,-970.73,0.00024657,3]
[329637242,1718519530047,-898.14,0.00024657,3]
[329637243,1718519530073,-500.0,0.00024657,3]
[329637244,1718519530085,-826.07,0.00024657,3]
[329637245,1718519530110,-500.0,0.00024657,3]
[329637246,1718519530122,-882.22,0.00024657,3]
[329637247,1718519530140,-854.76,0.00024657,3]
[329637248,1718519530154,-1666.34,0.00024657,3]
[329637249,1718519530173,-1419.04,0.00024657,3]
[329637250,1718519530197,-938.36,0.00024657,3]
[329637251,1718519530220,-535.88,0.00024657,3]
[329637252,1718519530245,-771.1,0.00024657,3]
[329637253,1718519530267,-500.0,0.00024657,3]
[329637254,1718519530285,-546.14,0.00024657,3]
[329637255,1718519530302,-637.63,0.00024657,3]
[329637256,1718519530321,-500.0,0.00024657,3]
[329637257,1718519530336,-534.11,0.00024657,3]
[329637258,1718519530380,-500.0,0.00024657,3]
[329637259,1718519530434,-171.61881481,0.00024657,3]
[329637260,1718519530450,-1079.11,0.00024657,3]
[329637261,1718519530467,-733.88,0.00024657,3]
[329637262,1718519530486,-500.0,0.00024657,3]
[329637263,1718519530499,-990.93,0.00024657,3]
[329637264,1718519530514,-500.0,0.00024657,3]
[329637265,1718519530532,-500.0,0.00024657,3]
[329637266,1718519530566,-500.0,0.00024657,3]
[329637267,1718519530581,-592.82,0.00024657,3]
[329637268,1718519530622,-2735.16,0.00024657,3]
[329637269,1718519530648,-599.16,0.00024657,3]
[329637270,1718519530664,-631.36,0.00024657,3]
[329637271,1718519530678,-505.74,0.00024657,3]
[329637272,1718519530695,-609.47,0.00024657,3]
[329637273,1718519530715,-707.73,0.00024657,3]
[329637274,1718519530729,-500.0,0.00024657,3]
[329637275,1718519531014,-150.0,0.00024666,2]
[329637276,1718519531028,-150.0,0.00024668,2]
[329637277,1718519531061,-150.0,0.00024675,2]
[329637278,1718519531077,-150.0,0.00024677,2]
[329637279,1718519531098,-160.02955024,0.00024678,2]
[329637280,1718519531109,-150.0,0.00024681,2]
[329637281,1718519531131,-150.0,0.00024684,2]
[329637282,1718519531155,-154.01467209,0.00024684,2]
[329637283,1718519531170,-150.0,0.00024686,2]
[329637284,1718519531183,-150.0,0.00024693,2]
[329637285,1718519531224,-291.0,0.000247,2]
[329637286,1718519531235,-583.0,0.000247,2]
[329637287,1718519531252,-583.0,0.000247,2]
[329637288,1718519531271,-190.0,0.000247,8]
[329637289,1718519531285,-160.0,0.000247,2]
[329637290,1718519531297,-150.0,0.000247,4]
[329637291,1718519531312,-150.0,0.00024702,2]
[329637292,1718519531344,-150.0,0.00024702,2]
[329637293,1718519531367,-150.0,0.0002472,2]
[329637294,1718519531380,-296.2601255,0.00024721,2]
[329637295,1718519531403,-150.0,0.00024726,2]
[329637296,1718519531426,-150.0,0.00024726,2]
[329637297,1718519531477,-296.2601255,0.00024734,2]
[329637298,1718519531505,-150.0,0.00024741,2]
[329637299,1718519531558,-154.01467209,0.00024742,2]
[329637300,1718519531570,-166.7727199,0.00024744,2]
[329637301,1718519531584,-152.1581309,0.00024749,2]
[329637302,1718519531596,-152.28834751,0.0002475,2]
[329637303,1718519531608,-150.0,0.00024754,2]
[329637304,1718519531620,-150.0,0.00024754,2]
[329637305,1718519531631,-324.0,0.00024798,2]
[329637306,1718519531668,-223.0,0.00024798,2]
[329637307,1718519531682,-221.0,0.00024798,2]
[329637308,1718519531700,-208.0,0.00024798,2]
[329637309,1718519531727,-150.0,0.00024798,2]
[329637310,1718519531759,-13984.11663311,0.00024798,2]
[329637311,1718519531783,-13984.11663304,0.00024798,2]
[329637312,1718519531796,-13984.11663304,0.00024798,2]
[329637313,1718519531808,-13984.11663304,0.00024798,2]
[329637314,1718519531823,-13984.11663304,0.00024798,2]
[329637315,1718519531843,-151.0,0.00024798,3]
[329637316,1718519531862,-20000.0,0.00024799,2]
[329637317,1718519531880,-23696.07325794,0.00024799,2]
[329637318,1718519531907,-23696.07325785,0.00024799,2]
[329637319,1718519531924,-23696.07325785,0.00024799,2]
[329637320,1718519531996,-23696.07325785,0.00024799,2]
[329637321,1718519532010,-23696.07325785,0.00024799,2]
[329637322,1718519532023,-150.0,0.000248,2]
[329637323,1718519532036,-1000.0,0.00024801,2]
[329637324,1718519532056,-500.0,0.00024803,2]
[329637325,1718519532071,-150.0,0.00024807,2]
[329637326,1718519532102,-150.0,0.00024807,2]
[329637327,1718519532124,-3000.0,0.0002481,2]
[329637328,1718519532138,-500.0,0.00024812,2]
[329637329,1718519532186,-572.85988994,0.00024814,2]
[329637330,1718519532201,-668.41653961,0.00024815,2]
[329637331,1718519532213,-150.0,0.00024819,2]
[329637332,1718519532226,-150.0,0.00024819,2]
[329637333,1718519532238,-500.0,0.00024821,2]
[329637334,1718519532251,-12756.6586337,0.00024821,2]
[329637335,1718519532264,-150.0,0.00024831,2]
[329637336,1718519532285,-150.0,0.00024832,2]
[329637337,1718519532305,-164.04553704,0.00024835,2]
[329637338,1718519532336,-3000.0,0.0002484,4]
[329637339,1718519532348,-572.85988994,0.00024844,2]
[329637340,1718519532368,-154.01467209,0.0002485,2]
[329637341,1718519532382,-150.0,0.00024851,2]
[329637342,1718519532411,-164.04553704,0.00024853,2]
[329637343,1718519532423,-150.0,0.00024855,2]
[329637344,1718519532437,-150.0,0.00024857,2]
[329637345,1718519532453,-419.60799944,0.00024859,2]
[329637346,1718519532473,-3101.23836663,0.0002486,2]
[329637347,1718519532489,-150.0,0.00024863,2]
[329637348,1718519532501,-5000.0,0.00024866,2]
[329637349,1718519532514,-150.0,0.00024871,2]
[329637350,1718519532526,-150.0,0.00024873,2]
[329637351,1718519532540,-150.0,0.00024879,2]
[329637352,1718519532569,-152.0,0.00024895,7]
[329637353,1718519532596,-154.01467209,0.00024895,2]
[329637354,1718519532608,-6805.17382079,0.000249,2]
[329637355,1718519532621,-155.0,0.000249,2]
[329637356,1718519532648,-150.5,0.000249,15]
[329637357,1718519532661,-2500.0,0.000249,2]
[329637358,1718519532729,-164.04553704,0.00024909,2]
[329637359,1718519532749,-150.5,0.0002491,15]
[329637360,1718519532766,-150.0,0.00024912,2]
[329637361,1718519532779,-150.89153703,0.00024918,2]
[329637362,1718519532790,-150.5,0.0002492,15]
[329637363,1718519532802,-153.37724975,0.00024924,2]
[329637364,1718519532817,-419.60799944,0.00024925,2]
[329637365,1718519532831,-166.66666666,0.0002493,2]
[329637366,1718519532854,-500.0,0.00024931,3]
[329637367,1718519532866,-500.0,0.00024931,3]
[329637368,1718519532880,-500.0,0.00024931,3]
[329637369,1718519532905,-500.0,0.00024931,3]
[329637370,1718519532916,-222.14726493,0.00024931,3]
[329637371,1718519532929,-500.0,0.00024931,3]
[329637372,1718519532941,-519.58,0.00024931,3]
[329637373,1718519532970,-500.0,0.00024931,3]
[329637374,1718519532999,-500.0,0.00024931,3]
[329637375,1718519533022,-500.0,0.00024931,3]
[329637376,1718519533040,-500.0,0.00024931,3]
[329637377,1718519533053,-500.0,0.00024931,3]
[329637378,1718519533066,-500.0,0.00024931,3]
[329637379,1718519533080,-221.39214937,0.00024931,3]
[329637380,1718519533094,-500.0,0.00024931,3]
[329637381,1718519533106,-500.0,0.00024931,3]
[329637382,1718519533119,-521.4,0.00024931,3]
[329637383,1718519533141,-500.0,0.00024931,3]
[329637384,1718519533152,-244.91905886,0.00024931,3]
[329637385,1718519533177,-339.13895217,0.00024931,3]
[329637386,1718519533196,-881.45,0.00024931,3]
[329637387,1718519533209,-500.0,0.00024931,3]
[329637388,1718519533219,-500.0,0.00024931,3]
[329637389,1718519533240,-500.0,0.00024931,3]
[329637390,1718519533261,-517.49,0.00024931,3]
[329637391,1718519533291,-500.0,0.00024931,3]
[329637392,1718519533316,-500.0,0.00024931,3]
[329637393,1718519533331,-517.12,0.00024931,3]
[329637394,1718519533368,-500.0,0.00024931,3]
[329637395,1718519533382,-500.0,0.00024931,3]
[329637396,1718519533393,-500.0,0.00024931,3]
[329637397,1718519533405,-500.0,0.00024931,3]
[329637398,1718519533419,-500.0,0.00024931,3]
[329637399,1718519533441,-500.0,0.00024931,3]
[329637400,1718519533455,-559.4198605,0.00024931,3]
[329637401,1718519533466,-558.88,0.00024931,3]
[329637402,1718519533477,-500.0,0.00024931,3]
[329637403,1718519533512,-695.39,0.00024931,3]
[329637404,1718519533536,-500.0,0.00024931,3]
[329637405,1718519533554,-500.0,0.00024931,3]
[329637406,1718519533568,-489.3060543,0.00024931,3]
[329637407,1718519533596,-518.8,0.00024931,3]
[329637408,1718519533616,-500.0,0.00024931,3]
[329637409,1718519533630,-500.0,0.00024931,3]
[329637410,1718519533648,-579.83,0.00024931,3]
[329637411,1718519533662,-500.0,0.00024931,3]
[329637412,1718519533675,-500.0,0.00024931,3]
[329637413,1718519533693,-500.0,0.00024931,3]
[329637414,1718519533708,-500.0,0.00024931,3]
[329637415,1718519533719,-665.03,0.00024931,3]
[329637416,1718519533730,-500.0,0.00024931,3]
[329637417,1718519533742,-500.0,0.00024931,3]
[329637418,1718519533753,-500.0,0.00024931,3]
[329637419,1718519533768,-500.0,0.00024931,3]
[329637420,1718519533800,-538.51,0.00024931,3]
[329637421,1718519533811,-577.03,0.00024931,3]
[329637422,1718519533847,-500.0,0.00024931,3]
[329637423,1718519533916,-500.0,0.00024931,3]
[329637424,1718519533930,-618.93,0.00024931,3]
[329637425,1718519533960,-500.0,0.00024931,3]
[329637426,1718519533989,-689.97,0.00024931,3]
[329637427,1718519534016,-500.0,0.00024931,3]
[329637428,1718519534034,-500.0,0.00024931,3]
[329637429,1718519534069,-500.0,0.00024931,3]
[329637430,1718519534099,-500.0,0.00024931,3]
[329637431,1718519534110,-732.2,0.00024931,3]
[329637432,1718519534138,-500.0,0.00024931,3]
[329637433,1718519534164,-150.0,0.00024931,2]
[329637434,1718519534189,-528.47,0.00024931,3]
[329637435,1718519534212,-500.0,0.00024931,3]
[329637436,1718519534227,-523.56,0.00024931,3]
[329637437,1718519534251,-500.0,0.00024931,3]
[329637438,1718519534273,-500.0,0.00024931,3]
[329637439,1718519534289,-784.49,0.00024931,3]
[329637440,1718519534307,-500.0,0.00024931,3]
[329637441,1718519534326,-500.0,0.00024931,3]
[329637442,1718519534342,-500.0,0.00024931,3]
[329637443,1718519534357,-609.24478152,0.00024931,3]
[329637444,1718519534370,-391.59102054,0.00024931,3]
[329637445,1718519534387,-1409.82,0.00024931,3]
[329637446,1718519534399,-628.68,0.00024931,3]
[329637447,1718519534413,-208.85,0.00024931,3]
[329637448,1718519534424,-500.0,0.00024931,3]
[329637449,1718519534449,-500.0,0.00024931,3]
[329637450,1718519534460,-500.0,0.00024931,3]
[329637451,1718519534477,-500.0,0.00024931,3]
[329637452,1718519534491,-644.15,0.00024931,3]
[329637453,1718519534503,-500.0,0.00024931,3]
[329637454,1718519534520,-500.0,0.00024931,3]
[329637455,1718519534535,-1318.25,0.00024931,3]
[329637456,1718519534548,-500.0,0.00024931,3]
[329637457,1718519534559,-500.0,0.00024931,3]
[329637458,1718519534571,-500.0,0.00024931,3]
[329637459,1718519534582,-500.0,0.00024931,3]
[329637460,1718519534596,-827.33,0.00024931,3]
[329637461,1718519534624,-526.71,0.00024931,3]
[329637462,1718519534654,-500.0,0.00024931,3]
[329637463,1718519534700,-500.0,0.00024931,3]
[329637464,1718519534715,-500.0,0.00024931,3]
[329637465,1718519534749,-500.0,0.00024931,3]
[329637466,1718519534769,-500.0,0.00024931,3]
[329637467,1718519534793,-500.0,0.00024931,3]
[329637468,1718519534825,-500.0,0.00024931,3]
[329637469,1718519534853,-367.31718525,0.00024931,3]
[329637470,1718519534865,-666.89,0.00024931,3]
[329637471,1718519534878,-528.0,0.00024931,3]
[329637472,1718519534890,-500.0,0.00024931,3]
[329637473,1718519534903,-500.0,0.00024931,3]
[329637474,1718519534917,-572.8,0.00024931,3]
[329637475,1718519534944,-6771.39,0.00024931,3]
[329637476,1718519534958,-2751.09,0.00024931,3]
[329637477,1718519534981,-500.0,0.00024931,3]
[329637478,1718519535001,-556.12,0.00024931,3]
[329637479,1718519535022,-500.0,0.00024931,3]
[329637480,1718519535034,-500.318703,0.00024931,3]
[329637481,1718519535055,-500.0,0.00024931,3]
[329637482,1718519535071,-500.318695,0.00024931,3]
[329637483,1718519535101,-4111.44,0.00024931,3]
[329637484,1718519535122,-500.0,0.00024931,3]
[329637485,1718519535158,-517.38,0.00024931,3]
[329637486,1718519535169,-1089.23,0.00024931,3]
[329637487,1718519535180,-500.0,0.00024931,3]
[329637488,1718519535191,-752.44,0.00024931,3]
[329637489,1718519535204,-500.0,0.00024931,3]
[329637490,1718519535216,-598.68,0.00024931,3]
[329637491,1718519535229,-16567.34,0.00024931,3]
[329637492,1718519535240,-500.0,0.00024931,3]
[329637493,1718519535253,-5825.82,0.00024931,3]
[329637494,1718519535265,-896.52,0.00024931,3]
[329637495,1718519535283,-500.0,0.00024931,3]
[329637496,1718519535306,-923.48,0.00024931,3]
[329637497,1718519535323,-565.58,0.00024931,3]
[329637498,1718519535338,-16140.01,0.00024931,3]
[329637499,1718519535354,-500.0,0.00024931,3]
[329637500,1718519535368,-867.54,0.00024931,3]
[329637501,1718519535386,-500.0,0.00024931,3]
[329637502,1718519535406,-720.86,0.00024931,3]
[329637503,1718519535471,-500.0,0.00024931,3]
[329637504,1718519535482,-1400.95,0.00024931,3]
[329637505,1718519535509,-883.04,0.00024931,3]
[329637506,1718519535521,-788.31,0.00024931,3]
[329637507,1718519535533,-614.72,0.00024931,3]
[329637508,1718519535544,-1333.44,0.00024931,3]
[329637509,1718519535554,-636.64,0.00024931,3]
[329637510,1718519535694,-1108.65,0.00024931,3]
[329637511,1718519535709,-1571.99,0.00024931,3]
[329637512,1718519535723,-1584.23,0.00024931,3]
[329637513,1718519535737,-4835.69,0.00024931,3]
[329637514,1718519535751,-500.0,0.00024931,3]
[329637515,1718519535770,-675.02,0.00024931,3]
[329637516,1718519535782,-1506.09,0.00024931,3]
[329637517,1718519535793,-547.67,0.00024931,3]
[329637518,1718519535809,-500.0,0.00024931,3]
[329637519,1718519535848,-500.0,0.00024931,3]
[329637520,1718519535867,-2665.25,0.00024931,3]
[329637521,1718519535891,-500.58,0.00024931,3]
[329637522,1718519535906,-768.07,0.00024931,3]
[329637523,1718519535928,-2906.49,0.00024931,3]
[329637524,1718519535945,-551.95,0.00024931,3]
[329637525,1718519535961,-1245.63,0.00024931,3]
[329637526,1718519536005,-679.0,0.00024931,3]
[329637527,1718519536026,-954.41,0.00024931,3]
[329637528,1718519536047,-500.0,0.00024931,3]
[329637529,1718519536088,-500.0,0.00024931,3]
[329637530,1718519536123,-500.0,0.00024931,3]
[329637531,1718519536143,-998.69,0.00024931,3]
[329637532,1718519536166,-500.0,0.00024931,3]
[329637533,1718519536190,-526.53,0.00024931,3]
[329637534,1718519536203,-500.0,0.00024931,3]
[329637535,1718519536233,-500.0,0.00024931,3]
[329637536,1718519536249,-574.1,0.00024931,3]
[329637537,1718519536268,-500.0,0.00024931,3]
[329637538,1718519536283,-1602.8,0.00024931,3]